fUSD/lending_fUSD_20240613
["ID","MTS","AMOUNT","RATE_DAILY","PERIOD"]
[329371411,1718290342526,-643.19,0.00025205,3]
[329371412,1718290342542,-2199.7,0.00025205,3]
[329371413,1718290342555,-500.0,0.00025205,3]
[329371414,1718290342573,-1295.74,0.00025205,3]
[329371415,1718290342586,-613.68,0.00025205,3]
[329371416,1718290342599,-1323.91,0.00025205,3]
[329371417,1718290342610,-975.22,0.00025205,3]
[329371418,1718290342621,-1550.77,0.00025205,3]
[329371419,1718290342650,-500.0,0.00025205,3]
[329371420,1718290342661,-500.0,0.00025205,3]
[329371421,1718290342674,-500.0,0.00025205,3]
[329371422,1718290342689,-12766.99,0.00025205,3]
[329371423,1718290342714,-513.36,0.00025205,3]
[329371424,1718290342726,-500.0,0.00025205,3]
[329371425,1718290342744,-559.41,0.00025205,3]
[329371426,1718290342785,-500.0,0.00025205,3]
[329371427,1718290342817,-500.0,0.00025205,3]
[329371428,1718290342891,-500.0,0.00025205,3]
[329371429,1718290342926,-679.33,0.00025205,3]
[329371430,1718290342965,-500.0,0.00025205,3]
[329371431,1718290342991,-3794.7,0.00025205,3]
[329371432,1718290343020,-500.0,0.00025205,3]
[329371433,1718290343041,-500.0,0.00025205,3]
[329371434,1718290343084,-500.0,0.00025205,3]
[329371435,1718290343113,-500.0,0.00025205,3]
[329371436,1718290343128,-301.05737949,0.00025205,3]
[329371437,1718290343149,-500.0,0.00025205,3]
[329371438,1718290343174,-500.0,0.00025205,3]
[329371439,1718290343199,-1057.5,0.00025205,3]
[329371440,1718290343224,-500.0,0.00025205,3]
[329371441,1718290343254,-500.0,0.00025205,3]
[329371442,1718290343279,-500.0,0.00025205,3]
[329371443,1718290343302,-2414.22,0.00025205,3]
[329371444,1718290343327,-500.0,0.00025205,3]
[329371445,1718290343345,-391.01,0.00025205,3]
[329371446,1718290343367,-500.0,0.00025205,3]
[329371447,1718290343392,-500.0,0.00025205,3]
[329371448,1718290343432,-654.22,0.00025205,3]
[329371449,1718290343465,-500.0,0.00025205,3]
[329371450,1718290343488,-500.0,0.00025205,3]
[329371451,1718290343505,-500.0,0.00025205,3]
[329371452,1718290343528,-1125.9,0.00025205,3]
[329371453,1718290343549,-500.0,0.00025205,3]
[329371454,1718290343569,-500.0,0.00025205,3]
[329371455,1718290343592,-500.0,0.00025205,3]
[329371456,1718290343612,-500.0,0.00025205,3]
[329371457,1718290343645,-500.0,0.00025205,3]
[329371458,1718290343667,-941.25,0.00025205,3]
[329371459,1718290343689,-531.14,0.00025205,3]
[329371460,1718290343720,-500.0,0.00025205,3]
[329371461,1718290343738,-500.0,0.00025205,3]
[329371462,1718290343759,-500.0,0.00025205,3]
[329371463,1718290343780,-1033.7,0.00025205,3]
[329371464,1718290343800,-500.0,0.00025205,3]
[329371465,1718290343817,-500.0,0.00025205,3]
[329371466,1718290343837,-2592.34,0.00025205,3]
[329371467,1718290343865,-500.0,0.00025205,3]
[329371468,1718290343885,-500.0,0.00025205,3]
[329371469,1718290343903,-500.0,0.00025205,3]
[329371470,1718290343921,-500.0,0.00025205,3]
[329371471,1718290343952,-588.3,0.00025205,3]
[329371472,1718290343972,-500.0,0.00025205,3]
[329371473,1718290344018,-500.0,0.00025205,3]
[329371474,1718290344042,-570.91,0.00025205,3]
[329371475,1718290344071,-1292.93,0.00025205,3]
[329371476,1718290344091,-637.83,0.00025205,3]
[329371477,1718290344108,-500.0,0.00025205,3]
[329371478,1718290344125,-533.76,0.00025205,3]
[329371479,1718290344144,-442.94219043,0.00025205,3]
[329371480,1718290344162,-816.12,0.00025205,3]
[329371481,1718290344185,-2201.98,0.00025205,3]
[329371482,1718290344206,-990.35,0.00025205,3]
[329371483,1718290344236,-866.3,0.00025205,3]
[329371484,1718290344262,-1039.78,0.00025205,3]
[329371485,1718290344279,-1827.63,0.00025205,3]
[329371486,1718290344297,-1377.98,0.00025205,3]
[329371487,1718290344321,-500.0,0.00025205,3]
[329371488,1718290344338,-511.34,0.00025205,3]
[329371489,1718290344357,-500.0,0.00025205,3]
[329371490,1718290344375,-1395.84,0.00025205,3]
[329371491,1718290344396,-653.41,0.00025205,3]
[329371492,1718290344416,-500.0,0.00025205,3]
[329371493,1718290344433,-500.0,0.00025205,3]
[329371494,1718290344461,-500.0,0.00025205,3]
[329371495,1718290344482,-168.98,0.00025205,3]
[329371496,1718290344511,-689.6,0.00025205,3]
[329371497,1718290344546,-2127.64,0.00025205,3]
[329371498,1718290344563,-761.09,0.00025205,3]
[329371499,1718290344599,-500.0,0.00025205,3]
[329371500,1718290344763,-587.76,0.00025205,3]
[329371501,1718290344775,-371.62,0.00025205,3]
[329371502,1718290344793,-500.0,0.00025205,3]
[329371503,1718290344824,-626.82,0.00025205,3]
[329371504,1718290344840,-605.86,0.00025205,3]
[329371505,1718290344854,-500.0,0.00025205,3]
[329371506,1718290344871,-920.47,0.00025205,3]
[329371507,1718290344887,-1177.4,0.00025205,3]
[329371508,1718290344914,-465.06,0.00025205,3]
[329371509,1718290344927,-500.0,0.00025205,3]
[329371510,1718290344940,-153.27,0.00025205,3]
[329371511,1718290344953,-500.0,0.00025205,3]
[329371512,1718290344965,-500.0,0.00025205,3]
[329371513,1718290344978,-500.0,0.00025205,3]
[329371514,1718290344993,-1386.9,0.00025205,3]
[329371515,1718290345008,-744.26,0.00025205,3]
[329371516,1718290345022,-887.49,0.00025205,3]
[329371517,1718290345045,-500.0,0.00025205,3]
[329371518,1718290345076,-500.0,0.00025205,3]
[329371519,1718290345122,-500.0,0.00025205,3]
[329371520,1718290345135,-7491.49,0.00025205,3]
[329371521,1718290345158,-510.9,0.00025205,3]
[329371522,1718290345182,-500.0,0.00025205,3]
[329371523,1718290345208,-2324.66,0.00025205,3]
[329371524,1718290345220,-500.0,0.00025205,3]
[329371525,1718290345232,-500.0,0.00025205,3]
[329371526,1718290345254,-1842.78,0.00025205,3]
[329371527,1718290345266,-2097.92,0.00025205,3]
[329371528,1718290345280,-1279.47,0.00025205,3]
[329371529,1718290345299,-165.0,0.00025218,9]
[329371530,1718290345319,-4877.38,0.00025331,2]
[329371531,1718290345335,-150.0,0.00025478,7]
[329371532,1718290345372,-500.0,0.00025479,3]
[329371533,1718290345407,-291.25143985,0.00025479,3]
[329371534,1718290345452,-181.2126165,0.00025479,3]
[329371535,1718290345467,-540.69310636,0.00025479,3]
[329371536,1718290345482,-500.0,0.00025479,3]
[329371537,1718290345501,-175.85705203,0.00025479,3]
[329371538,1718290345533,-500.0,0.00025479,3]
[329371539,1718290345558,-500.0,0.00025479,3]
[329371540,1718290345600,-500.0,0.00025479,3]
[329371541,1718290345614,-500.0,0.00025479,3]
[329371542,1718290345644,-500.0,0.00025479,3]
[329371543,1718290345676,-500.0,0.00025479,3]
[329371544,1718290345725,-500.0,0.00025479,3]
[329371545,1718290345736,-500.0,0.00025479,3]
[329371546,1718290345777,-500.0,0.00025479,3]
[329371547,1718290345793,-243.28,0.00025479,3]
[329371548,1718290345822,-500.0,0.00025479,3]
[329371549,1718290345870,-500.0,0.00025479,3]
[329371550,1718290345918,-500.0,0.00025479,3]
[329371551,1718290345933,-500.0,0.00025479,3]
[329371552,1718290345961,-500.0,0.00025479,3]
[329371553,1718290345986,-500.0,0.00025479,3]
[329371554,1718290346013,-500.0,0.00025479,3]
[329371555,1718290346026,-310.46,0.00025479,3]
[329371556,1718290346038,-500.0,0.00025479,3]
[329371557,1718290346054,-500.0,0.00025479,3]
[329371558,1718290346080,-500.0,0.00025479,3]
[329371559,1718290346104,-500.0,0.00025479,3]
[329371560,1718290346133,-500.0,0.00025479,3]
[329371561,1718290346148,-500.0,0.00025479,3]
[329371562,1718290346180,-475.6,0.00025479,3]
[329371563,1718290346191,-500.0,0.00025479,3]
[329371564,1718290346201,-500.0,0.00025479,3]
[329371565,1718290346211,-422.76,0.00025479,3]
[329371566,1718290346222,-500.0,0.00025479,3]
[329371567,1718290346235,-326.08421504,0.00025479,3]
[329371568,1718290346246,-500.0,0.00025479,3]
[329371569,1718290346285,-500.98,0.00025479,3]
[329371570,1718290346304,-500.0,0.00025479,3]
[329371571,1718290346337,-500.0,0.00025479,3]
[329371572,1718290346350,-500.0,0.00025479,3]
[329371573,1718290346380,-500.0,0.00025479,3]
[329371574,1718290346392,-182.27,0.00025479,3]
[329371575,1718290346405,-500.0,0.00025479,3]
[329371576,1718290346416,-500.0,0.00025479,3]
[329371577,1718290346426,-504.55333048,0.00025479,3]
[329371578,1718290346448,-500.0,0.00025479,3]
[329371579,1718290346461,-500.0,0.00025479,3]
[329371580,1718290346499,-377.2,0.00025479,3]
[329371581,1718290346534,-500.0,0.00025479,3]
[329371582,1718290346545,-500.0,0.00025479,3]
[329371583,1718290346562,-809.41,0.00025479,3]
[329371584,1718290346575,-507.94,0.00025479,3]
[329371585,1718290346587,-500.0,0.00025479,3]
[329371586,1718290346612,-500.0,0.00025479,3]
[329371587,1718290346628,-500.0,0.00025479,3]
[329371588,1718290346639,-500.0,0.00025479,3]
[329371589,1718290346657,-500.0,0.00025479,3]
[329371590,1718290346671,-235.64,0.00025479,3]
[329371591,1718290346683,-500.0,0.00025479,3]
[329371592,1718290346694,-500.0,0.00025479,3]
[329371593,1718290346705,-289.26,0.00025479,3]
[329371594,1718290346736,-500.0,0.00025479,3]
[329371595,1718290346746,-500.0,0.00025479,3]
[329371596,1718290346769,-330.00250596,0.00025479,3]
[329371597,1718290346781,-1934.26,0.00025479,3]
[329371598,1718290346813,-500.0,0.00025479,3]
[329371599,1718290346839,-500.0,0.00025479,3]
[329371600,1718290346856,-500.0,0.00025479,3]
[329371601,1718290346871,-500.0,0.00025479,3]
[329371602,1718290346894,-500.0,0.00025479,3]
[329371603,1718290346920,-544.35,0.00025479,3]
[329371604,1718290346943,-634.27,0.00025479,3]
[329371605,1718290346965,-500.0,0.00025479,3]
[329371606,1718290346987,-500.0,0.00025479,3]
[329371607,1718290347006,-500.0,0.00025479,3]
[329371608,1718290347020,-500.0,0.00025479,3]
[329371609,1718290347042,-599.48,0.00025479,3]
[329371610,1718290347072,-500.0,0.00025479,3]
[329371611,1718290347087,-387.76,0.00025479,3]
[329371612,1718290347105,-500.0,0.00025479,3]
[329371613,1718290347116,-500.0,0.00025479,3]
[329371614,1718290347132,-500.0,0.00025479,3]
[329371615,1718290347144,-500.0,0.00025479,3]
[329371616,1718290347178,-879.88,0.00025479,3]
[329371617,1718290347190,-500.0,0.00025479,3]
[329371618,1718290347221,-567.18,0.00025479,3]
[329371619,1718290347233,-500.0,0.00025479,3]
[329371620,1718290347245,-1048.93,0.00025479,3]
[329371621,1718290347270,-1012.91,0.00025479,3]
[329371622,1718290347285,-500.0,0.00025479,3]
[329371623,1718290347306,-500.0,0.00025479,3]
[329371624,1718290347333,-500.0,0.00025479,3]
[329371625,1718290347378,-500.0,0.00025479,3]
[329371626,1718290347389,-500.0,0.00025479,3]
[329371627,1718290347403,-500.0,0.00025479,3]
[329371628,1718290347436,-500.0,0.00025479,3]
[329371629,1718290347448,-11632.61,0.00025479,3]
[329371630,1718290347484,-977.44,0.00025479,3]
[329371631,1718290347516,-518.11,0.00025479,3]
[329371632,1718290347529,-500.0,0.00025479,3]
[329371633,1718290347552,-500.0,0.00025479,3]
[329371634,1718290347563,-500.0,0.00025479,3]
[329371635,1718290347581,-651.87,0.00025479,3]
[329371636,1718290347591,-639.07,0.00025479,3]
[329371637,1718290347602,-997.51,0.00025479,3]
[329371638,1718290347620,-500.0,0.00025479,3]
[329371639,1718290347637,-500.0,0.00025479,3]
[329371640,1718290347648,-1311.35,0.00025479,3]
[329371641,1718290347664,-643.19,0.00025479,3]
[329371642,1718290347674,-2199.7,0.00025479,3]
[329371643,1718290347685,-500.0,0.00025479,3]
[329371644,1718290347701,-1295.74,0.00025479,3]
[329371645,1718290347715,-613.68,0.00025479,3]
[329371646,1718290347740,-1323.91,0.00025479,3]
[329371647,1718290347767,-975.22,0.00025479,3]
[329371648,1718290347794,-1550.77,0.00025479,3]
[329371649,1718290347809,-500.0,0.00025479,3]
[329371650,1718290347827,-500.0,0.00025479,3]
[329371651,1718290347854,-500.0,0.00025479,3]
[329371652,1718290347871,-12766.99,0.00025479,3]
[329371653,1718290347932,-513.36,0.00025479,3]
[329371654,1718290347952,-500.0,0.00025479,3]
[329371655,1718290347973,-559.41,0.00025479,3]
[329371656,1718290347983,-500.0,0.00025479,3]
[329371657,1718290348006,-500.0,0.00025479,3]
[329371658,1718290348020,-679.33,0.00025479,3]
[329371659,1718290348032,-500.0,0.00025479,3]
[329371660,1718290348044,-3794.7,0.00025479,3]
[329371661,1718290348057,-500.0,0.00025479,3]
[329371662,1718290348084,-500.0,0.00025479,3]
[329371663,1718290348098,-500.0,0.00025479,3]
[329371664,1718290348120,-500.0,0.00025479,3]
[329371665,1718290348135,-500.0,0.00025479,3]
[329371666,1718290348175,-500.0,0.00025479,3]
[329371667,1718290348232,-1057.5,0.00025479,3]
[329371668,1718290348261,-500.0,0.00025479,3]
[329371669,1718290348274,-500.0,0.00025479,3]
[329371670,1718290348292,-500.0,0.00025479,3]
[329371671,1718290348306,-2414.22,0.00025479,3]
[329371672,1718290348325,-500.0,0.00025479,3]
[329371673,1718290348339,-500.0,0.00025479,3]
[329371674,1718290348386,-500.0,0.00025479,3]
[329371675,1718290348407,-500.0,0.00025479,3]
[329371676,1718290348424,-654.22,0.00025479,3]
[329371677,1718290348441,-173.58,0.00025479,3]
[329371678,1718290348452,-500.0,0.00025479,3]
[329371679,1718290348463,-1125.9,0.00025479,3]
[329371680,1718290348491,-500.0,0.00025479,3]
[329371681,1718290348506,-500.0,0.00025479,3]
[329371682,1718290348519,-500.0,0.00025479,3]
[329371683,1718290348530,-500.0,0.00025479,3]
[329371684,1718290348542,-941.25,0.00025479,3]
[329371685,1718290348554,-500.0,0.00025479,3]
[329371686,1718290348674,-531.14,0.00025479,3]
[329371687,1718290348686,-500.0,0.00025479,3]
[329371688,1718290348704,-500.0,0.00025479,3]
[329371689,1718290348724,-500.0,0.00025479,3]
[329371690,1718290348739,-1033.7,0.00025479,3]
[329371691,1718290348767,-500.0,0.00025479,3]
[329371692,1718290348790,-500.0,0.00025479,3]
[329371693,1718290348804,-2592.34,0.00025479,3]
[329371694,1718290348828,-500.0,0.00025479,3]
[329371695,1718290348838,-500.0,0.00025479,3]
[329371696,1718290348850,-500.0,0.00025479,3]
[329371697,1718290348865,-500.0,0.00025479,3]
[329371698,1718290348876,-588.3,0.00025479,3]
[329371699,1718290348899,-500.0,0.00025479,3]
[329371700,1718290348920,-500.0,0.00025479,3]
[329371701,1718290348935,-570.91,0.00025479,3]
[329371702,1718290348968,-1292.93,0.00025479,3]
[329371703,1718290348992,-637.83,0.00025479,3]
[329371704,1718290349016,-500.0,0.00025479,3]
[329371705,1718290349028,-533.76,0.00025479,3]
[329371706,1718290349045,-816.12,0.00025479,3]
[329371707,1718290349057,-2201.98,0.00025479,3]
[329371708,1718290349088,-990.35,0.00025479,3]
[329371709,1718290349124,-866.3,0.00025479,3]
[329371710,1718290349148,-1039.78,0.00025479,3]
[329371711,1718290349164,-1827.63,0.00025479,3]
[329371712,1718290349176,-1377.98,0.00025479,3]
[329371713,1718290349201,-500.0,0.00025479,3]
[329371714,1718290349213,-511.34,0.00025479,3]
[329371715,1718290349226,-500.0,0.00025479,3]
[329371716,1718290349237,-1395.84,0.00025479,3]
[329371717,1718290349272,-653.41,0.00025479,3]
[329371718,1718290349289,-500.0,0.00025479,3]
[329371719,1718290349314,-500.0,0.00025479,3]
[329371720,1718290349327,-641.63,0.00025479,3]
[329371721,1718290349346,-689.6,0.00025479,3]
[329371722,1718290349367,-2127.64,0.00025479,3]
[329371723,1718290349383,-761.09,0.00025479,3]
[329371724,1718290349394,-500.0,0.00025479,3]
[329371725,1718290349407,-587.76,0.00025479,3]
[329371726,1718290349436,-500.0,0.00025479,3]
[329371727,1718290349448,-605.86,0.00025479,3]
[329371728,1718290349518,-500.0,0.00025479,3]
[329371729,1718290349550,-920.47,0.00025479,3]
[329371730,1718290349583,-1177.4,0.00025479,3]
[329371731,1718290349604,-184.42,0.00025479,3]
[329371732,1718290349617,-229.95,0.00025479,3]
[329371733,1718290349629,-500.0,0.00025479,3]
[329371734,1718290349642,-1386.9,0.00025479,3]
[329371735,1718290349657,-744.26,0.00025479,3]
[329371736,1718290349672,-887.49,0.00025479,3]
[329371737,1718290349703,-500.0,0.00025479,3]
[329371738,1718290349734,-500.0,0.00025479,3]
[329371739,1718290349745,-500.0,0.00025479,3]
[329371740,1718290349756,-7491.49,0.00025479,3]
[329371741,1718290349770,-500.0,0.00025479,3]
[329371742,1718290349792,-2324.66,0.00025479,3]
[329371743,1718290349809,-500.0,0.00025479,3]
[329371744,1718290349829,-500.0,0.00025479,3]
[329371745,1718290349861,-1842.78,0.00025479,3]
[329371746,1718290349876,-2097.92,0.00025479,3]
[329371747,1718290349889,-1279.47,0.00025479,3]
[329371748,1718290349914,-201.98,0.0002559,2]
[329371749,1718290349926,-150.0,0.000256,4]
[329371750,1718290349976,-203.0,0.0002563,2]
[329371751,1718290349987,-500.0,0.00025753,3]
[329371752,1718290349998,-514.99056636,0.00025753,3]
[329371753,1718290350026,-334.95,0.00025753,3]
[329371754,1718290350077,-245.88,0.00025753,3]
[329371755,1718290350092,-500.0,0.00025753,3]
[329371756,1718290350124,-500.0,0.00025753,3]
[329371757,1718290350153,-500.0,0.00025753,3]
[329371758,1718290350185,-500.0,0.00025753,3]
[329371759,1718290350204,-500.0,0.00025753,3]
[329371760,1718290350215,-500.0,0.00025753,3]
[329371761,1718290350226,-500.0,0.00025753,3]
[329371762,1718290350237,-500.0,0.00025753,3]
[329371763,1718290350250,-500.0,0.00025753,3]
[329371764,1718290350263,-161.81191653,0.00025753,3]
[329371765,1718290350311,-500.0,0.00025753,3]
[329371766,1718290350323,-500.0,0.00025753,3]
[329371767,1718290350338,-500.0,0.00025753,3]
[329371768,1718290350370,-500.0,0.00025753,3]
[329371769,1718290350384,-332.37044983,0.00025753,3]
[329371770,1718290350408,-395.75,0.00025753,3]
[329371771,1718290350419,-500.0,0.00025753,3]
[329371772,1718290350437,-500.0,0.00025753,3]
[329371773,1718290350449,-500.0,0.00025753,3]
[329371774,1718290350466,-393.5,0.00025753,3]
[329371775,1718290350490,-500.0,0.00025753,3]
[329371776,1718290350502,-500.0,0.00025753,3]
[329371777,1718290350530,-500.0,0.00025753,3]
[329371778,1718290350540,-500.0,0.00025753,3]
[329371779,1718290350552,-500.98,0.00025753,3]
[329371780,1718290350564,-500.0,0.00025753,3]
[329371781,1718290350575,-500.0,0.00025753,3]
[329371782,1718290350614,-500.0,0.00025753,3]
[329371783,1718290350624,-500.0,0.00025753,3]
[329371784,1718290350644,-182.27,0.00025753,3]
[329371785,1718290350672,-500.0,0.00025753,3]
[329371786,1718290350684,-500.0,0.00025753,3]
[329371787,1718290350695,-377.68,0.00025753,3]
[329371788,1718290350706,-500.0,0.00025753,3]
[329371789,1718290350717,-527.96926358,0.00025753,3]
[329371790,1718290350729,-500.0,0.00025753,3]
[329371791,1718290350757,-809.41,0.00025753,3]
[329371792,1718290350784,-507.94,0.00025753,3]
[329371793,1718290350812,-500.0,0.00025753,3]
[329371794,1718290350829,-500.0,0.00025753,3]
[329371795,1718290350856,-500.0,0.00025753,3]
[329371796,1718290350867,-500.0,0.00025753,3]
[329371797,1718290350890,-500.0,0.00025753,3]
[329371798,1718290350913,-500.0,0.00025753,3]
[329371799,1718290350946,-500.0,0.00025753,3]
[329371800,1718290350959,-500.0,0.00025753,3]
[329371801,1718290350977,-500.0,0.00025753,3]
[329371802,1718290351000,-1934.26,0.00025753,3]
[329371803,1718290351020,-203.97894491,0.00025753,3]
[329371804,1718290351032,-500.0,0.00025753,3]
[329371805,1718290351043,-319.29682253,0.00025753,3]
[329371806,1718290351054,-500.0,0.00025753,3]
[329371807,1718290351067,-500.0,0.00025753,3]
[329371808,1718290351078,-544.35,0.00025753,3]
[329371809,1718290351090,-500.0,0.00025753,3]
[329371810,1718290351101,-227.2,0.00025753,3]
[329371811,1718290351112,-500.0,0.00025753,3]
[329371812,1718290351123,-502.66,0.00025753,3]
[329371813,1718290351134,-500.0,0.00025753,3]
[329371814,1718290351157,-500.0,0.00025753,3]
[329371815,1718290351172,-500.0,0.00025753,3]
[329371816,1718290351183,-500.0,0.00025753,3]
[329371817,1718290351196,-879.88,0.00025753,3]
[329371818,1718290351237,-500.0,0.00025753,3]
[329371819,1718290351252,-500.0,0.00025753,3]
[329371820,1718290351263,-1048.93,0.00025753,3]
[329371821,1718290351274,-1012.91,0.00025753,3]
[329371822,1718290351287,-602.02833009,0.00025753,3]
[329371823,1718290351299,-500.0,0.00025753,3]
[329371824,1718290351310,-500.0,0.00025753,3]
[329371825,1718290351322,-500.0,0.00025753,3]
[329371826,1718290351335,-500.0,0.00025753,3]
[329371827,1718290351356,-500.0,0.00025753,3]
[329371828,1718290351375,-500.0,0.00025753,3]
[329371829,1718290351388,-11632.61,0.00025753,3]
[329371830,1718290351399,-977.44,0.00025753,3]
[329371831,1718290351415,-500.0,0.00025753,3]
[329371832,1718290351428,-651.87,0.00025753,3]
[329371833,1718290351442,-639.07,0.00025753,3]
[329371834,1718290351454,-997.51,0.00025753,3]
[329371835,1718290351466,-406.24,0.00025753,3]
[329371836,1718290351476,-500.0,0.00025753,3]
[329371837,1718290351487,-1311.35,0.00025753,3]
[329371838,1718290351503,-643.19,0.00025753,3]
[329371839,1718290351525,-2199.7,0.00025753,3]
[329371840,1718290351549,-500.0,0.00025753,3]
[329371841,1718290351560,-1295.74,0.00025753,3]
[329371842,1718290351570,-613.68,0.00025753,3]
[329371843,1718290351581,-1323.91,0.00025753,3]
[329371844,1718290351595,-975.22,0.00025753,3]
[329371845,1718290351605,-1550.77,0.00025753,3]
[329371846,1718290351621,-500.0,0.00025753,3]
[329371847,1718290351648,-500.0,0.00025753,3]
[329371848,1718290351662,-500.0,0.00025753,3]
[329371849,1718290351681,-12766.99,0.00025753,3]
[329371850,1718290351693,-513.36,0.00025753,3]
[329371851,1718290351713,-500.0,0.00025753,3]
[329371852,1718290351723,-559.41,0.00025753,3]
[329371853,1718290351734,-500.0,0.00025753,3]
[329371854,1718290351745,-500.0,0.00025753,3]
[329371855,1718290351882,-679.33,0.00025753,3]
[329371856,1718290351897,-500.0,0.00025753,3]
[329371857,1718290351917,-3794.7,0.00025753,3]
[329371858,1718290351933,-500.0,0.00025753,3]
[329371859,1718290351947,-500.0,0.00025753,3]
[329371860,1718290351961,-500.0,0.00025753,3]
[329371861,1718290351979,-500.0,0.00025753,3]
[329371862,1718290351998,-500.0,0.00025753,3]
[329371863,1718290352022,-500.0,0.00025753,3]
[329371864,1718290352074,-1057.5,0.00025753,3]
[329371865,1718290352087,-500.0,0.00025753,3]
[329371866,1718290352111,-500.0,0.00025753,3]
[329371867,1718290352141,-500.0,0.00025753,3]
[329371868,1718290352155,-2414.22,0.00025753,3]
[329371869,1718290352172,-500.0,0.00025753,3]
[329371870,1718290352188,-500.0,0.00025753,3]
[329371871,1718290352216,-500.0,0.00025753,3]
[329371872,1718290352237,-500.0,0.00025753,3]
[329371873,1718290352280,-654.22,0.00025753,3]
[329371874,1718290352291,-500.0,0.00025753,3]
[329371875,1718290352308,-1125.9,0.00025753,3]
[329371876,1718290352364,-500.0,0.00025753,3]
[329371877,1718290352378,-500.0,0.00025753,3]
[329371878,1718290352395,-500.0,0.00025753,3]
[329371879,1718290352408,-941.25,0.00025753,3]
[329371880,1718290352422,-500.0,0.00025753,3]
[329371881,1718290352470,-531.14,0.00025753,3]
[329371882,1718290352480,-500.0,0.00025753,3]
[329371883,1718290352495,-500.0,0.00025753,3]
[329371884,1718290352506,-500.0,0.00025753,3]
[329371885,1718290352518,-1033.7,0.00025753,3]
[329371886,1718290352568,-500.0,0.00025753,3]
[329371887,1718290352580,-500.0,0.00025753,3]
[329371888,1718290352591,-2592.34,0.00025753,3]
[329371889,1718290352602,-500.0,0.00025753,3]
[329371890,1718290352615,-500.0,0.00025753,3]
[329371891,1718290352626,-500.0,0.00025753,3]
[329371892,1718290352647,-500.0,0.00025753,3]
[329371893,1718290352658,-588.3,0.00025753,3]
[329371894,1718290352669,-500.0,0.00025753,3]
[329371895,1718290352686,-500.0,0.00025753,3]
[329371896,1718290352698,-570.91,0.00025753,3]
[329371897,1718290352714,-1292.93,0.00025753,3]
[329371898,1718290352726,-637.83,0.00025753,3]
[329371899,1718290352739,-500.0,0.00025753,3]
[329371900,1718290352755,-533.76,0.00025753,3]
[329371901,1718290352787,-816.12,0.00025753,3]
[329371902,1718290352804,-2201.98,0.00025753,3]
[329371903,1718290352832,-990.35,0.00025753,3]
[329371904,1718290352843,-866.3,0.00025753,3]
[329371905,1718290352854,-1039.78,0.00025753,3]
[329371906,1718290352871,-1827.63,0.00025753,3]
[329371907,1718290352886,-1377.98,0.00025753,3]
[329371908,1718290352904,-500.0,0.00025753,3]
[329371909,1718290352917,-511.34,0.00025753,3]
[329371910,1718290352940,-500.0,0.00025753,3]